{"text_format":"1","workbook":"xlsx","n_sheets":4,"sheets":["D_JOUR","TABLES","Mode d'emploi","Modifications"],"not_rendered":{"charts":0,"images":1,"macros":1,"external_links":0,"defined_names":8,"comments":0,"pivot_tables":0},"unopened":[],"bounds":{"document_bytes":16777216,"sheet_cells":100000,"rows_first":2000,"rows_last":500,"rows_between":2000,"halvings":0,"cell_chars":16384,"cell_head_chars":4096},"cells_cut":0,"cells_raw":0,"read":"whole","date_system":"1900"}

{"sheet":"D_JOUR","index":0,"n_rows":121,"n_cols":53,"rows_kept":121,"cut":false,"hidden":false,"merged":[[0,0,3,1],[4,2,4,3],[4,4,4,5],[4,1,5,1],[0,43,1,44],[2,43,3,44],[4,0,5,0],[0,2,2,42],[3,2,3,6]]}
[null,null,"DONNEES ",null,null,null,null,null,null,null,null,null,null,null,null,null,null,null,null,null,null,null,null,null,null,null,null,null,null,null,null,null,null,null,null,null,null,null,null,null,null,null,null,{"$f":"PROPER(TEXT(AR3,\"jjjj\"))","v":"Dimanche"}]
[]
[null,null,null,null,null,null,null,null,null,null,null,null,null,null,null,null,null,null,null,null,null,null,null,null,null,null,null,null,null,null,null,null,null,null,null,null,null,null,null,null,null,null,null,"2018-04-01"]
[null,null,null,null,null,null,null,{"$f":"SUM(H7:H121)","v":0},{"$f":"SUM(I7:I121)","v":2},0,0,0,2,0,0,0,2,0,0,0,2,0,0,0,0,null,null,null,null,null,0,0,0,0,0,0,0,0,0,0,0,0]
["N","NOM DE L'EMPLOYÉ","HEURE A.M.",null,"HEURE P.M.",null,"H","000","001","003","500","011","304","051","055","052","153","066","101","100","106","211","201","251","201",null,null,null,null,null,"251","300","301","301","313","503","505","507","508","013","510","655","T.V.H","CHANTIERS","N°","DATE"]
[null,null,"DE","À","DE","À","PR.",null,null,null,null,null,null,"DR",null,"PL","CO",null,null,null,null,"CO","DR","CO","CO",null,null,null,null,null,"DR",null,"DR","CO","MU",null,null,null,null,null,null,null,{"$f":"SUM(AQ7:AQ121)","v":8},null,null,"CLOTURE"]
[1,"MARTIN DESGAGNÉ",7,12,12.5,15.5,{"$f":"IF(B7=\"\",\"\",D7-C7+F7-E7)","v":8},null,2,null,null,null,2,null,null,null,2,null,null,null,2,null,null,null,null,null,null,null,null,null,null,null,null,null,null,null,null,null,null,null,null,null,{"$f":"SUM(H7:AP7)","v":8},null,{"$f":"IFERROR(INDEX(TABLES!$I$2:$J$50,MATCH($AR7,TABLES!$I$2:$I$50,0),2),\"\")","v":""},{"$f":"IFERROR(INDEX(TABLES!$I$2:$K$50,MATCH($AR7,TABLES!$I$2:$I$50,0),3),\"\")","v":""}]
[2,null,7,12,12.5,15.5,"",null,null,null,null,null,null,null,null,null,null,null,null,null,null,null,null,null,null,null,null,null,null,null,null,null,null,null,null,null,null,null,null,null,null,null,{"$f":"SUM(H8:AP8)","v":0},null,{"$f":"IFERROR(INDEX(TABLES!$I$2:$J$50,MATCH(AR8,TABLES!$I$2:$I$50,0),2),\"\")","v":""},{"$f":"IFERROR(INDEX(TABLES!$I$2:$K$50,MATCH($AR8,TABLES!$I$2:$I$50,0),3),\"\")","v":""}]
[3,null,7,12,12.5,15.5,"",null,null,null,null,null,null,null,null,null,null,null,null,null,null,null,null,null,null,null,null,null,null,null,null,null,null,null,null,null,null,null,null,null,null,null,0,null,{"$f":"IFERROR(INDEX(TABLES!$I$2:$J$50,MATCH(AR9,TABLES!$I$2:$I$50,0),2),\"\")","v":""},{"$f":"IFERROR(INDEX(TABLES!$I$2:$K$50,MATCH($AR9,TABLES!$I$2:$I$50,0),3),\"\")","v":""}]
[4,null,7,12,12.5,15.5,"",null,null,null,null,null,null,null,null,null,null,null,null,null,null,null,null,null,null,null,null,null,null,null,null,null,null,null,null,null,null,null,null,null,null,null,0,null,{"$f":"IFERROR(INDEX(TABLES!$I$2:$J$50,MATCH(AR10,TABLES!$I$2:$I$50,0),2),\"\")","v":""},{"$f":"IFERROR(INDEX(TABLES!$I$2:$K$50,MATCH($AR10,TABLES!$I$2:$I$50,0),3),\"\")","v":""}]
[5,null,7,12,12.5,15.5,"",null,null,null,null,null,null,null,null,null,null,null,null,null,null,null,null,null,null,null,null,null,null,null,null,null,null,null,null,null,null,null,null,null,null,null,0,null,{"$f":"IFERROR(INDEX(TABLES!$I$2:$J$50,MATCH(AR11,TABLES!$I$2:$I$50,0),2),\"\")","v":""},{"$f":"IFERROR(INDEX(TABLES!$I$2:$K$50,MATCH($AR11,TABLES!$I$2:$I$50,0),3),\"\")","v":""}," "]
[6,null,7,12,12.5,15.5,"",null,null,null,null,null,null,null,null,null,null,null,null,null,null,null,null,null,null,null,null,null,null,null,null,null,null,null,null,null,null,null,null,null,null,null,0,null,{"$f":"IFERROR(INDEX(TABLES!$I$2:$J$50,MATCH(AR12,TABLES!$I$2:$I$50,0),2),\"\")","v":""},{"$f":"IFERROR(INDEX(TABLES!$I$2:$K$50,MATCH($AR12,TABLES!$I$2:$I$50,0),3),\"\")","v":""},null,null,null," "]
[7,null,7,12,12.5,15.5,"",null,null,null,null,null,null,null,null,null,null,null,null,null,null,null,null,null,null,null,null,null,null,null,null,null,null,null,null,null,null,null,null,null,null,null,0,null,{"$f":"IFERROR(INDEX(TABLES!$I$2:$J$50,MATCH(AR13,TABLES!$I$2:$I$50,0),2),\"\")","v":""},{"$f":"IFERROR(INDEX(TABLES!$I$2:$K$50,MATCH($AR13,TABLES!$I$2:$I$50,0),3),\"\")","v":""},null,null,null,null," "]
[8,null,7,12,12.5,15.5,"",null,null,null,null,null,null,null,null,null,null,null,null,null,null,null,null,null,null,null,null,null,null,null,null,null,null,null,null,null,null,null,null,null,null,null,0,null,{"$f":"IFERROR(INDEX(TABLES!$I$2:$J$50,MATCH(AR14,TABLES!$I$2:$I$50,0),2),\"\")","v":""},{"$f":"IFERROR(INDEX(TABLES!$I$2:$K$50,MATCH($AR14,TABLES!$I$2:$I$50,0),3),\"\")","v":""}]
[9,null,7,12,12.5,15.5,"",null,null,null,null,null,null,null,null,null,null,null,null,null,null,null,null,null,null,null,null,null,null,null,null,null,null,null,null,null,null,null,null,null,null,null,0,null,{"$f":"IFERROR(INDEX(TABLES!$I$2:$J$50,MATCH(AR15,TABLES!$I$2:$I$50,0),2),\"\")","v":""},{"$f":"IFERROR(INDEX(TABLES!$I$2:$K$50,MATCH($AR15,TABLES!$I$2:$I$50,0),3),\"\")","v":""}]
[10,null,7,12,12.5,15.5,"",null,null,null,null,null,null,null,null,null,null,null,null,null,null,null,null,null,null,null,null,null,null,null,null,null,null,null,null,null,null,null,null,null,null,null,0,null,{"$f":"IFERROR(INDEX(TABLES!$I$2:$J$50,MATCH(AR16,TABLES!$I$2:$I$50,0),2),\"\")","v":""},{"$f":"IFERROR(INDEX(TABLES!$I$2:$K$50,MATCH($AR16,TABLES!$I$2:$I$50,0),3),\"\")","v":""}," ",null," ",null,null,null," "]
[11,null,7,12,12.5,15.5,"",null,null,null,null,null,null,null,null,null,null,null,null,null,null,null,null,null,null,null,null,null,null,null,null,null,null,null,null,null,null,null,null,null,null,null,0,null,{"$f":"IFERROR(INDEX(TABLES!$I$2:$J$50,MATCH(AR17,TABLES!$I$2:$I$50,0),2),\"\")","v":""},{"$f":"IFERROR(INDEX(TABLES!$I$2:$K$50,MATCH($AR17,TABLES!$I$2:$I$50,0),3),\"\")","v":""},null,null,null,null," "]
[12,null,7,12,12.5,15.5,{"$f":"IF(B18=\"\",\"\",D18-C18+F18-E18)","v":""},null,null,null,null,null,null,null,null,null,null,null,null,null,null,null,null,null,null,null,null,null,null,null,null,null,null,null,null,null,null,null,null,null,null,null,0,null,{"$f":"IFERROR(INDEX(TABLES!$I$2:$J$50,MATCH(AR18,TABLES!$I$2:$I$50,0),2),\"\")","v":""},{"$f":"IFERROR(INDEX(TABLES!$I$2:$K$50,MATCH($AR18,TABLES!$I$2:$I$50,0),3),\"\")","v":""}]
[13,null,7,12,12.5,15.5,{"$f":"IF(B19=\"\",\"\",D19-C19+F19-E19)","v":""},null,null,null,null,null,null,null,null,null,null,null,null,null,null,null,null,null,null,null,null,null,null,null,null,null,null,null,null,null,null,null,null,null,null,null,0,null,{"$f":"IFERROR(INDEX(TABLES!$I$2:$J$50,MATCH(AR19,TABLES!$I$2:$I$50,0),2),\"\")","v":""},{"$f":"IFERROR(INDEX(TABLES!$I$2:$K$50,MATCH($AR19,TABLES!$I$2:$I$50,0),3),\"\")","v":""}]
[14,null,7,12,12.5,15.5,"",null,null,null,null,null,null,null,null,null,null,null,null,null,null,null,null,null,null,null,null,null,null,null,null,null,null,null,null,null,null,null,null,null,null,null,0,null,{"$f":"IFERROR(INDEX(TABLES!$I$2:$J$50,MATCH(AR20,TABLES!$I$2:$I$50,0),2),\"\")","v":""},{"$f":"IFERROR(INDEX(TABLES!$I$2:$K$50,MATCH($AR20,TABLES!$I$2:$I$50,0),3),\"\")","v":""},null,null,null," "]
[15,null,7,12,12.5,15.5,"",null,null,null,null,null,null,null,null,null,null,null,null,null,null,null,null,null,null,null,null,null,null,null,null,null,null,null,null,null,null,null,null,null,null,null,0,null,{"$f":"IFERROR(INDEX(TABLES!$I$2:$J$50,MATCH(AR21,TABLES!$I$2:$I$50,0),2),\"\")","v":""},{"$f":"IFERROR(INDEX(TABLES!$I$2:$K$50,MATCH($AR21,TABLES!$I$2:$I$50,0),3),\"\")","v":""}," "," "," "]
[16,null,7,12,12.5,15.5,"",null,null,null,null,null,null,null,null,null,null,null,null,null,null,null,null,null,null,null,null,null,null,null,null,null,null,null,null,null,null,null,null,null,null,null,0,null,{"$f":"IFERROR(INDEX(TABLES!$I$2:$J$50,MATCH(AR22,TABLES!$I$2:$I$50,0),2),\"\")","v":""},{"$f":"IFERROR(INDEX(TABLES!$I$2:$K$50,MATCH($AR22,TABLES!$I$2:$I$50,0),3),\"\")","v":""},null,null,null,null,null," "]
[17,null,7,12,12.5,15.5,"",null,null,null,null,null,null,null,null,null,null,null,null,null,null,null,null,null,null,null,null,null,null,null,null,null,null,null,null,null,null,null,null,null,null,null,0,null,{"$f":"IFERROR(INDEX(TABLES!$I$2:$J$50,MATCH(AR23,TABLES!$I$2:$I$50,0),2),\"\")","v":""},{"$f":"IFERROR(INDEX(TABLES!$I$2:$K$50,MATCH($AR23,TABLES!$I$2:$I$50,0),3),\"\")","v":""}]
[18,null,7,12,12.5,15.5,{"$f":"IF(B24=\"\",\"\",D24-C24+F24-E24)","v":""},null,null,null,null,null,null,null,null,null,null,null,null,null,null,null,null,null,null,null,null,null,null,null,null,null,null,null,null,null,null,null,null,null,null,null,{"$f":"SUM(H24:AP24)","v":0},null,{"$f":"IFERROR(INDEX(TABLES!$I$2:$J$50,MATCH(AR24,TABLES!$I$2:$I$50,0),2),\"\")","v":""},{"$f":"IFERROR(INDEX(TABLES!$I$2:$K$50,MATCH($AR24,TABLES!$I$2:$I$50,0),3),\"\")","v":""}]
[19,null,7,12,12.5,15.5,"",null,null,null,null,null,null,null,null,null,null,null,null,null,null,null,null,null,null,null,null,null,null,null,null,null,null,null,null,null,null,null,null,null,null,null,0,null,{"$f":"IFERROR(INDEX(TABLES!$I$2:$J$50,MATCH(AR25,TABLES!$I$2:$I$50,0),2),\"\")","v":""},{"$f":"IFERROR(INDEX(TABLES!$I$2:$K$50,MATCH($AR25,TABLES!$I$2:$I$50,0),3),\"\")","v":""}]
[20,null,7,12,12.5,15.5,"",null,null,null,null,null,null,null,null,null,null,null,null,null,null,null,null,null,null,null,null,null,null,null,null,null,null,null,null,null,null,null,null,null,null,null,0,null,{"$f":"IFERROR(INDEX(TABLES!$I$2:$J$50,MATCH(AR26,TABLES!$I$2:$I$50,0),2),\"\")","v":""},{"$f":"IFERROR(INDEX(TABLES!$I$2:$K$50,MATCH($AR26,TABLES!$I$2:$I$50,0),3),\"\")","v":""}]
[21,null,7,12,12.5,15.5,"",null,null,null,null,null,null,null,null,null,null,null,null,null,null,null,null,null,null,null,null,null,null,null,null,null,null,null,null,null,null,null,null,null,null,null,0,null,{"$f":"IFERROR(INDEX(TABLES!$I$2:$J$50,MATCH(AR27,TABLES!$I$2:$I$50,0),2),\"\")","v":""},{"$f":"IFERROR(INDEX(TABLES!$I$2:$K$50,MATCH($AR27,TABLES!$I$2:$I$50,0),3),\"\")","v":""}]
[22,null,7,12,12.5,15.5,"",null,null,null,null,null,null,null,null,null,null,null,null,null,null,null,null,null,null,null,null,null,null,null,null,null,null,null,null,null,null,null,null,null,null,null,0,null,{"$f":"IFERROR(INDEX(TABLES!$I$2:$J$50,MATCH(AR28,TABLES!$I$2:$I$50,0),2),\"\")","v":""},{"$f":"IFERROR(INDEX(TABLES!$I$2:$K$50,MATCH($AR28,TABLES!$I$2:$I$50,0),3),\"\")","v":""}]
[23,null,7,12,12.5,15.5,"",null,null,null,null,null,null,null,null,null,null,null,null,null,null,null,null,null,null,null,null,null,null,null,null,null,null,null,null,null,null,null,null,null,null,null,0,null,{"$f":"IFERROR(INDEX(TABLES!$I$2:$J$50,MATCH(AR29,TABLES!$I$2:$I$50,0),2),\"\")","v":""},{"$f":"IFERROR(INDEX(TABLES!$I$2:$K$50,MATCH($AR29,TABLES!$I$2:$I$50,0),3),\"\")","v":""}]
[24,null,7,12,12.5,15.5,"",null,null,null,null,null,null,null,null,null,null,null,null,null,null,null,null,null,null,null,null,null,null,null,null,null,null,null,null,null,null,null,null,null,null,null,0,null,{"$f":"IFERROR(INDEX(TABLES!$I$2:$J$50,MATCH(AR30,TABLES!$I$2:$I$50,0),2),\"\")","v":""},{"$f":"IFERROR(INDEX(TABLES!$I$2:$K$50,MATCH($AR30,TABLES!$I$2:$I$50,0),3),\"\")","v":""}," "]
[25,null,7,12,12.5,15.5,"",null,null,null,null,null,null,null,null,null,null,null,null,null,null,null,null,null,null,null,null,null,null,null,null,null,null,null,null,null,null,null,null,null,null,null,0,null,{"$f":"IFERROR(INDEX(TABLES!$I$2:$J$50,MATCH(AR31,TABLES!$I$2:$I$50,0),2),\"\")","v":""},{"$f":"IFERROR(INDEX(TABLES!$I$2:$K$50,MATCH($AR31,TABLES!$I$2:$I$50,0),3),\"\")","v":""}]
[26,null,7,12,12.5,15.5,"",null,null,null,null,null,null,null,null,null,null,null,null,null,null,null,null,null,null,null,null,null,null,null,null,null,null,null,null,null,null,null,null,null,null,null,0,null,{"$f":"IFERROR(INDEX(TABLES!$I$2:$J$50,MATCH(AR32,TABLES!$I$2:$I$50,0),2),\"\")","v":""},{"$f":"IFERROR(INDEX(TABLES!$I$2:$K$50,MATCH($AR32,TABLES!$I$2:$I$50,0),3),\"\")","v":""}]
[27,null,7,12,12.5,15.5,"",null,null,null,null,null,null,null,null,null,null,null,null,null,null,null,null,null,null,null,null,null,null,null,null,null,null,null,null,null,null,null,null,null,null,null,0,null,{"$f":"IFERROR(INDEX(TABLES!$I$2:$J$50,MATCH(AR33,TABLES!$I$2:$I$50,0),2),\"\")","v":""},{"$f":"IFERROR(INDEX(TABLES!$I$2:$K$50,MATCH($AR33,TABLES!$I$2:$I$50,0),3),\"\")","v":""}]
[28,null,7,12,12.5,15.5,"",null,null,null,null,null,null,null,null,null,null,null,null,null,null,null,null,null,null,null,null,null,null,null,null,null,null,null,null,null,null,null,null,null,null,null,0,null,{"$f":"IFERROR(INDEX(TABLES!$I$2:$J$50,MATCH(AR34,TABLES!$I$2:$I$50,0),2),\"\")","v":""},{"$f":"IFERROR(INDEX(TABLES!$I$2:$K$50,MATCH($AR34,TABLES!$I$2:$I$50,0),3),\"\")","v":""}]
[29,null,7,12,12.5,15.5,"",null,null,null,null,null,null,null,null,null,null,null,null,null,null,null,null,null,null,null,null,null,null,null,null,null,null,null,null,null,null,null,null,null,null,null,0,null,{"$f":"IFERROR(INDEX(TABLES!$I$2:$J$50,MATCH(AR35,TABLES!$I$2:$I$50,0),2),\"\")","v":""},{"$f":"IFERROR(INDEX(TABLES!$I$2:$K$50,MATCH($AR35,TABLES!$I$2:$I$50,0),3),\"\")","v":""}]
[30,null,7,12,12.5,15.5,"",null,null,null,null,null,null,null,null,null,null,null,null,null,null,null,null,null,null,null,null,null,null,null,null,null,null,null,null,null,null,null,null,null,null,null,0,null,{"$f":"IFERROR(INDEX(TABLES!$I$2:$J$50,MATCH(AR36,TABLES!$I$2:$I$50,0),2),\"\")","v":""},{"$f":"IFERROR(INDEX(TABLES!$I$2:$K$50,MATCH($AR36,TABLES!$I$2:$I$50,0),3),\"\")","v":""}]
[31,null,7,12,12.5,15.5,"",null,null,null,null,null,null,null,null,null,null,null,null,null,null,null,null,null,null,null,null,null,null,null,null,null,null,null,null,null,null,null,null,null,null,null,0,null,{"$f":"IFERROR(INDEX(TABLES!$I$2:$J$50,MATCH(AR37,TABLES!$I$2:$I$50,0),2),\"\")","v":""},{"$f":"IFERROR(INDEX(TABLES!$I$2:$K$50,MATCH($AR37,TABLES!$I$2:$I$50,0),3),\"\")","v":""}]
[32,null,7,12,12.5,15.5,"",null,null,null,null,null,null,null,null,null,null,null,null,null,null,null,null,null,null,null,null,null,null,null,null,null,null,null,null,null,null,null,null,null,null,null,0,null,{"$f":"IFERROR(INDEX(TABLES!$I$2:$J$50,MATCH(AR38,TABLES!$I$2:$I$50,0),2),\"\")","v":""},{"$f":"IFERROR(INDEX(TABLES!$I$2:$K$50,MATCH($AR38,TABLES!$I$2:$I$50,0),3),\"\")","v":""}]
[33,null,7,12,12.5,15.5,"",null,null,null,null,null,null,null,null,null,null,null,null,null,null,null,null,null,null,null,null,null,null,null,null,null,null,null,null,null,null,null,null,null,null,null,0,null,{"$f":"IFERROR(INDEX(TABLES!$I$2:$J$50,MATCH(AR39,TABLES!$I$2:$I$50,0),2),\"\")","v":""},{"$f":"IFERROR(INDEX(TABLES!$I$2:$K$50,MATCH($AR39,TABLES!$I$2:$I$50,0),3),\"\")","v":""}]
[34,null,7,12,12.5,15.5,"",null,null,null,null,null,null,null,null,null,null,null,null,null,null,null,null,null,null,null,null,null,null,null,null,null,null,null,null,null,null,null,null,null,null,null,0,null,{"$f":"IFERROR(INDEX(TABLES!$I$2:$J$50,MATCH(AR40,TABLES!$I$2:$I$50,0),2),\"\")","v":""},{"$f":"IFERROR(INDEX(TABLES!$I$2:$K$50,MATCH($AR40,TABLES!$I$2:$I$50,0),3),\"\")","v":""}]
[35,null,7,12,12.5,15.5,"",null,null,null,null,null,null,null,null,null,null,null,null,null,null,null,null,null,null,null,null,null,null,null,null,null,null,null,null,null,null,null,null,null,null,null,0,null,{"$f":"IFERROR(INDEX(TABLES!$I$2:$J$50,MATCH(AR41,TABLES!$I$2:$I$50,0),2),\"\")","v":""},{"$f":"IFERROR(INDEX(TABLES!$I$2:$K$50,MATCH($AR41,TABLES!$I$2:$I$50,0),3),\"\")","v":""}]
[36,null,7,12,12.5,15.5,"",null,null,null,null,null,null,null,null,null,null,null,null,null,null,null,null,null,null,null,null,null,null,null,null,null,null,null,null,null,null,null,null,null,null,null,0,null,{"$f":"IFERROR(INDEX(TABLES!$I$2:$J$50,MATCH(AR42,TABLES!$I$2:$I$50,0),2),\"\")","v":""},{"$f":"IFERROR(INDEX(TABLES!$I$2:$K$50,MATCH($AR42,TABLES!$I$2:$I$50,0),3),\"\")","v":""}]
[37,null,7,12,12.5,15.5,"",null,null,null,null,null,null,null,null,null,null,null,null,null,null,null,null,null,null,null,null,null,null,null,null,null,null,null,null,null,null,null,null,null,null,null,0,null,{"$f":"IFERROR(INDEX(TABLES!$I$2:$J$50,MATCH(AR43,TABLES!$I$2:$I$50,0),2),\"\")","v":""},{"$f":"IFERROR(INDEX(TABLES!$I$2:$K$50,MATCH($AR43,TABLES!$I$2:$I$50,0),3),\"\")","v":""}]
[38,null,7,12,12.5,15.5,"",null,null,null,null,null,null,null,null,null,null,null,null,null,null,null,null,null,null,null,null,null,null,null,null,null,null,null,null,null,null,null,null,null,null,null,0,null,{"$f":"IFERROR(INDEX(TABLES!$I$2:$J$50,MATCH(AR44,TABLES!$I$2:$I$50,0),2),\"\")","v":""},{"$f":"IFERROR(INDEX(TABLES!$I$2:$K$50,MATCH($AR44,TABLES!$I$2:$I$50,0),3),\"\")","v":""}]
[39,null,7,12,12.5,15.5,"",null,null,null,null,null,null,null,null,null,null,null,null,null,null,null,null,null,null,null,null,null,null,null,null,null,null,null,null,null,null,null,null,null,null,null,0,null,{"$f":"IFERROR(INDEX(TABLES!$I$2:$J$50,MATCH(AR45,TABLES!$I$2:$I$50,0),2),\"\")","v":""},{"$f":"IFERROR(INDEX(TABLES!$I$2:$K$50,MATCH($AR45,TABLES!$I$2:$I$50,0),3),\"\")","v":""}]
[40,null,7,12,12.5,15.5,"",null,null,null,null,null,null,null,null,null,null,null,null,null,null,null,null,null,null,null,null,null,null,null,null,null,null,null,null,null,null,null,null,null,null,null,0,null,{"$f":"IFERROR(INDEX(TABLES!$I$2:$J$50,MATCH(AR46,TABLES!$I$2:$I$50,0),2),\"\")","v":""},{"$f":"IFERROR(INDEX(TABLES!$I$2:$K$50,MATCH($AR46,TABLES!$I$2:$I$50,0),3),\"\")","v":""}]
[41,null,7,12,12.5,15.5,"",null,null,null,null,null,null,null,null,null,null,null,null,null,null,null,null,null,null,null,null,null,null,null,null,null,null,null,null,null,null,null,null,null,null,null,0,null,{"$f":"IFERROR(INDEX(TABLES!$I$2:$J$50,MATCH(AR47,TABLES!$I$2:$I$50,0),2),\"\")","v":""},{"$f":"IFERROR(INDEX(TABLES!$I$2:$K$50,MATCH($AR47,TABLES!$I$2:$I$50,0),3),\"\")","v":""}]
[42,null,7,12,12.5,15.5,"",null,null,null,null,null,null,null,null,null,null,null,null,null,null,null,null,null,null,null,null,null,null,null,null,null,null,null,null,null,null,null,null,null,null,null,0,null,{"$f":"IFERROR(INDEX(TABLES!$I$2:$J$50,MATCH(AR48,TABLES!$I$2:$I$50,0),2),\"\")","v":""},{"$f":"IFERROR(INDEX(TABLES!$I$2:$K$50,MATCH($AR48,TABLES!$I$2:$I$50,0),3),\"\")","v":""}]
[43,null,7,12,12.5,15.5,"",null,null,null,null,null,null,null,null,null,null,null,null,null,null,null,null,null,null,null,null,null,null,null,null,null,null,null,null,null,null,null,null,null,null,null,0,null,{"$f":"IFERROR(INDEX(TABLES!$I$2:$J$50,MATCH(AR49,TABLES!$I$2:$I$50,0),2),\"\")","v":""},{"$f":"IFERROR(INDEX(TABLES!$I$2:$K$50,MATCH($AR49,TABLES!$I$2:$I$50,0),3),\"\")","v":""}]
[44,null,7,12,12.5,15.5,"",null,null,null,null,null,null,null,null,null,null,null,null,null,null,null,null,null,null,null,null,null,null,null,null,null,null,null,null,null,null,null,null,null,null,null,0,null,{"$f":"IFERROR(INDEX(TABLES!$I$2:$J$50,MATCH(AR50,TABLES!$I$2:$I$50,0),2),\"\")","v":""},{"$f":"IFERROR(INDEX(TABLES!$I$2:$K$50,MATCH($AR50,TABLES!$I$2:$I$50,0),3),\"\")","v":""}]
[45,null,7,12,12.5,15.5,"",null,null,null,null,null,null,null,null,null,null,null,null,null,null,null,null,null,null,null,null,null,null,null,null,null,null,null,null,null,null,null,null,null,null,null,0,null,{"$f":"IFERROR(INDEX(TABLES!$I$2:$J$50,MATCH(AR51,TABLES!$I$2:$I$50,0),2),\"\")","v":""},{"$f":"IFERROR(INDEX(TABLES!$I$2:$K$50,MATCH($AR51,TABLES!$I$2:$I$50,0),3),\"\")","v":""}]
[46,null,7,12,12.5,15.5,"",null,null,null,null,null,null,null,null,null,null,null,null,null,null,null,null,null,null,null,null,null,null,null,null,null,null,null,null,null,null,null,null,null,null,null,0,null,{"$f":"IFERROR(INDEX(TABLES!$I$2:$J$50,MATCH(AR52,TABLES!$I$2:$I$50,0),2),\"\")","v":""},{"$f":"IFERROR(INDEX(TABLES!$I$2:$K$50,MATCH($AR52,TABLES!$I$2:$I$50,0),3),\"\")","v":""}]
[47,null,7,12,12.5,15.5,"",null,null,null,null,null,null,null,null,null,null,null,null,null,null,null,null,null,null,null,null,null,null,null,null,null,null,null,null,null,null,null,null,null,null,null,0,null,{"$f":"IFERROR(INDEX(TABLES!$I$2:$J$50,MATCH(AR53,TABLES!$I$2:$I$50,0),2),\"\")","v":""},{"$f":"IFERROR(INDEX(TABLES!$I$2:$K$50,MATCH($AR53,TABLES!$I$2:$I$50,0),3),\"\")","v":""}]
[48,null,7,12,12.5,15.5,"",null,null,null,null,null,null,null,null,null,null,null,null,null,null,null,null,null,null,null,null,null,null,null,null,null,null,null,null,null,null,null,null,null,null,null,0,null,{"$f":"IFERROR(INDEX(TABLES!$I$2:$J$50,MATCH(AR54,TABLES!$I$2:$I$50,0),2),\"\")","v":""},{"$f":"IFERROR(INDEX(TABLES!$I$2:$K$50,MATCH($AR54,TABLES!$I$2:$I$50,0),3),\"\")","v":""}]
[49,null,7,12,12.5,15.5,"",null,null,null,null,null,null,null,null,null,null,null,null,null,null,null,null,null,null,null,null,null,null,null,null,null,null,null,null,null,null,null,null,null,null,null,0,null,{"$f":"IFERROR(INDEX(TABLES!$I$2:$J$50,MATCH(AR55,TABLES!$I$2:$I$50,0),2),\"\")","v":""},{"$f":"IFERROR(INDEX(TABLES!$I$2:$K$50,MATCH($AR55,TABLES!$I$2:$I$50,0),3),\"\")","v":""}]
[50,null,7,12,12.5,15.5,"",null,null,null,null,null,null,null,null,null,null,null,null,null,null,null,null,null,null,null,null,null,null,null,null,null,null,null,null,null,null,null,null,null,null,null,0,null,{"$f":"IFERROR(INDEX(TABLES!$I$2:$J$50,MATCH(AR56,TABLES!$I$2:$I$50,0),2),\"\")","v":""},{"$f":"IFERROR(INDEX(TABLES!$I$2:$K$50,MATCH($AR56,TABLES!$I$2:$I$50,0),3),\"\")","v":""}]
[51,null,7,12,12.5,15.5,"",null,null,null,null,null,null,null,null,null,null,null,null,null,null,null,null,null,null,null,null,null,null,null,null,null,null,null,null,null,null,null,null,null,null,null,0,null,{"$f":"IFERROR(INDEX(TABLES!$I$2:$J$50,MATCH(AR57,TABLES!$I$2:$I$50,0),2),\"\")","v":""},{"$f":"IFERROR(INDEX(TABLES!$I$2:$K$50,MATCH($AR57,TABLES!$I$2:$I$50,0),3),\"\")","v":""}]
[52,null,7,12,12.5,15.5,"",null,null,null,null,null,null,null,null,null,null,null,null,null,null,null,null,null,null,null,null,null,null,null,null,null,null,null,null,null,null,null,null,null,null,null,0,null,{"$f":"IFERROR(INDEX(TABLES!$I$2:$J$50,MATCH(AR58,TABLES!$I$2:$I$50,0),2),\"\")","v":""},{"$f":"IFERROR(INDEX(TABLES!$I$2:$K$50,MATCH($AR58,TABLES!$I$2:$I$50,0),3),\"\")","v":""}]
[53,null,7,12,12.5,15.5,"",null,null,null,null,null,null,null,null,null,null,null,null,null,null,null,null,null,null,null,null,null,null,null,null,null,null,null,null,null,null,null,null,null,null,null,{"$f":"SUM(H59:AP59)","v":0},null,{"$f":"IFERROR(INDEX(TABLES!$I$2:$J$50,MATCH(AR59,TABLES!$I$2:$I$50,0),2),\"\")","v":""},{"$f":"IFERROR(INDEX(TABLES!$I$2:$K$50,MATCH($AR59,TABLES!$I$2:$I$50,0),3),\"\")","v":""}]
[54,null,7,12,12.5,15.5,{"$f":"IF(B60=\"\",\"\",D60-C60+F60-E60)","v":""},null,null,null,null,null,null,null,null,null,null,null,null,null,null,null,null,null,null,null,null,null,null,null,null,null,null,null,null,null,null,null,null,null,null,null,0,null,{"$f":"IFERROR(INDEX(TABLES!$I$2:$J$50,MATCH(AR60,TABLES!$I$2:$I$50,0),2),\"\")","v":""},{"$f":"IFERROR(INDEX(TABLES!$I$2:$K$50,MATCH($AR60,TABLES!$I$2:$I$50,0),3),\"\")","v":""}]
[55,null,7,12,12.5,15.5,"",null,null,null,null,null,null,null,null,null,null,null,null,null,null,null,null,null,null,null,null,null,null,null,null,null,null,null,null,null,null,null,null,null,null,null,0,null,{"$f":"IFERROR(INDEX(TABLES!$I$2:$J$50,MATCH(AR61,TABLES!$I$2:$I$50,0),2),\"\")","v":""},{"$f":"IFERROR(INDEX(TABLES!$I$2:$K$50,MATCH($AR61,TABLES!$I$2:$I$50,0),3),\"\")","v":""}]
[56,null,7,12,12.5,15.5,"",null,null,null,null,null,null,null,null,null,null,null,null,null,null,null,null,null,null,null,null,null,null,null,null,null,null,null,null,null,null,null,null,null,null,null,0,null,{"$f":"IFERROR(INDEX(TABLES!$I$2:$J$50,MATCH(AR62,TABLES!$I$2:$I$50,0),2),\"\")","v":""},{"$f":"IFERROR(INDEX(TABLES!$I$2:$K$50,MATCH($AR62,TABLES!$I$2:$I$50,0),3),\"\")","v":""}]
[57,null,7,12,12.5,15.5,"",null,null,null,null,null,null,null,null,null,null,null,null,null,null,null,null,null,null,null,null,null,null,null,null,null,null,null,null,null,null,null,null,null,null,null,0,null,{"$f":"IFERROR(INDEX(TABLES!$I$2:$J$50,MATCH(AR63,TABLES!$I$2:$I$50,0),2),\"\")","v":""},{"$f":"IFERROR(INDEX(TABLES!$I$2:$K$50,MATCH($AR63,TABLES!$I$2:$I$50,0),3),\"\")","v":""}]
[58,null,7,12,12.5,15.5,"",null,null,null,null,null,null,null,null,null,null,null,null,null,null,null,null,null,null,null,null,null,null,null,null,null,null,null,null,null,null,null,null,null,null,null,0,null,{"$f":"IFERROR(INDEX(TABLES!$I$2:$J$50,MATCH(AR64,TABLES!$I$2:$I$50,0),2),\"\")","v":""},{"$f":"IFERROR(INDEX(TABLES!$I$2:$K$50,MATCH($AR64,TABLES!$I$2:$I$50,0),3),\"\")","v":""}]
[59,null,7,12,12.5,15.5,"",null,null,null,null,null,null,null,null,null,null,null,null,null,null,null,null,null,null,null,null,null,null,null,null,null,null,null,null,null,null,null,null,null,null,null,0,null,{"$f":"IFERROR(INDEX(TABLES!$I$2:$J$50,MATCH(AR65,TABLES!$I$2:$I$50,0),2),\"\")","v":""},{"$f":"IFERROR(INDEX(TABLES!$I$2:$K$50,MATCH($AR65,TABLES!$I$2:$I$50,0),3),\"\")","v":""}]
[60,null,7,12,12.5,15.5,"",null,null,null,null,null,null,null,null,null,null,null,null,null,null,null,null,null,null,null,null,null,null,null,null,null,null,null,null,null,null,null,null,null,null,null,0,null,{"$f":"IFERROR(INDEX(TABLES!$I$2:$J$50,MATCH(AR66,TABLES!$I$2:$I$50,0),2),\"\")","v":""},{"$f":"IFERROR(INDEX(TABLES!$I$2:$K$50,MATCH($AR66,TABLES!$I$2:$I$50,0),3),\"\")","v":""}]
[61,null,7,12,12.5,15.5,"",null,null,null,null,null,null,null,null,null,null,null,null,null,null,null,null,null,null,null,null,null,null,null,null,null,null,null,null,null,null,null,null,null,null,null,0,null,{"$f":"IFERROR(INDEX(TABLES!$I$2:$J$50,MATCH(AR67,TABLES!$I$2:$I$50,0),2),\"\")","v":""},{"$f":"IFERROR(INDEX(TABLES!$I$2:$K$50,MATCH($AR67,TABLES!$I$2:$I$50,0),3),\"\")","v":""}]
[62,null,7,12,12.5,15.5,"",null,null,null,null,null,null,null,null,null,null,null,null,null,null,null,null,null,null,null,null,null,null,null,null,null,null,null,null,null,null,null,null,null,null,null,0,null,{"$f":"IFERROR(INDEX(TABLES!$I$2:$J$50,MATCH(AR68,TABLES!$I$2:$I$50,0),2),\"\")","v":""},{"$f":"IFERROR(INDEX(TABLES!$I$2:$K$50,MATCH($AR68,TABLES!$I$2:$I$50,0),3),\"\")","v":""}]
[63,null,7,12,12.5,15.5,"",null,null,null,null,null,null,null,null,null,null,null,null,null,null,null,null,null,null,null,null,null,null,null,null,null,null,null,null,null,null,null,null,null,null,null,0,null,{"$f":"IFERROR(INDEX(TABLES!$I$2:$J$50,MATCH(AR69,TABLES!$I$2:$I$50,0),2),\"\")","v":""},{"$f":"IFERROR(INDEX(TABLES!$I$2:$K$50,MATCH($AR69,TABLES!$I$2:$I$50,0),3),\"\")","v":""}]
[64,null,7,12,12.5,15.5,"",null,null,null,null,null,null,null,null,null,null,null,null,null,null,null,null,null,null,null,null,null,null,null,null,null,null,null,null,null,null,null,null,null,null,null,0,null,{"$f":"IFERROR(INDEX(TABLES!$I$2:$J$50,MATCH(AR70,TABLES!$I$2:$I$50,0),2),\"\")","v":""},{"$f":"IFERROR(INDEX(TABLES!$I$2:$K$50,MATCH($AR70,TABLES!$I$2:$I$50,0),3),\"\")","v":""}]
[65,null,7,12,12.5,15.5,"",null,null,null,null,null,null,null,null,null,null,null,null,null,null,null,null,null,null,null,null,null,null,null,null,null,null,null,null,null,null,null,null,null,null,null,0,null,{"$f":"IFERROR(INDEX(TABLES!$I$2:$J$50,MATCH(AR71,TABLES!$I$2:$I$50,0),2),\"\")","v":""},{"$f":"IFERROR(INDEX(TABLES!$I$2:$K$50,MATCH($AR71,TABLES!$I$2:$I$50,0),3),\"\")","v":""}]
[66,null,7,12,12.5,15.5,"",null,null,null,null,null,null,null,null,null,null,null,null,null,null,null,null,null,null,null,null,null,null,null,null,null,null,null,null,null,null,null,null,null,null,null,0,null,{"$f":"IFERROR(INDEX(TABLES!$I$2:$J$50,MATCH(AR72,TABLES!$I$2:$I$50,0),2),\"\")","v":""},{"$f":"IFERROR(INDEX(TABLES!$I$2:$K$50,MATCH($AR72,TABLES!$I$2:$I$50,0),3),\"\")","v":""}]
[67,null,7,12,12.5,15.5,"",null,null,null,null,null,null,null,null,null,null,null,null,null,null,null,null,null,null,null,null,null,null,null,null,null,null,null,null,null,null,null,null,null,null,null,0,null,{"$f":"IFERROR(INDEX(TABLES!$I$2:$J$50,MATCH(AR73,TABLES!$I$2:$I$50,0),2),\"\")","v":""},{"$f":"IFERROR(INDEX(TABLES!$I$2:$K$50,MATCH($AR73,TABLES!$I$2:$I$50,0),3),\"\")","v":""}]
[68,null,7,12,12.5,15.5,"",null,null,null,null,null,null,null,null,null,null,null,null,null,null,null,null,null,null,null,null,null,null,null,null,null,null,null,null,null,null,null,null,null,null,null,0,null,{"$f":"IFERROR(INDEX(TABLES!$I$2:$J$50,MATCH(AR74,TABLES!$I$2:$I$50,0),2),\"\")","v":""},{"$f":"IFERROR(INDEX(TABLES!$I$2:$K$50,MATCH($AR74,TABLES!$I$2:$I$50,0),3),\"\")","v":""}]
[69,null,7,12,12.5,15.5,"",null,null,null,null,null,null,null,null,null,null,null,null,null,null,null,null,null,null,null,null,null,null,null,null,null,null,null,null,null,null,null,null,null,null,null,0,null,{"$f":"IFERROR(INDEX(TABLES!$I$2:$J$50,MATCH(AR75,TABLES!$I$2:$I$50,0),2),\"\")","v":""},{"$f":"IFERROR(INDEX(TABLES!$I$2:$K$50,MATCH($AR75,TABLES!$I$2:$I$50,0),3),\"\")","v":""}]
[70,null,7,12,12.5,15.5,"",null,null,null,null,null,null,null,null,null,null,null,null,null,null,null,null,null,null,null,null,null,null,null,null,null,null,null,null,null,null,null,null,null,null,null,0,null,{"$f":"IFERROR(INDEX(TABLES!$I$2:$J$50,MATCH(AR76,TABLES!$I$2:$I$50,0),2),\"\")","v":""},{"$f":"IFERROR(INDEX(TABLES!$I$2:$K$50,MATCH($AR76,TABLES!$I$2:$I$50,0),3),\"\")","v":""}]
[71,null,7,12,12.5,15.5,"",null,null,null,null,null,null,null,null,null,null,null,null,null,null,null,null,null,null,null,null,null,null,null,null,null,null,null,null,null,null,null,null,null,null,null,0,null,{"$f":"IFERROR(INDEX(TABLES!$I$2:$J$50,MATCH(AR77,TABLES!$I$2:$I$50,0),2),\"\")","v":""},{"$f":"IFERROR(INDEX(TABLES!$I$2:$K$50,MATCH($AR77,TABLES!$I$2:$I$50,0),3),\"\")","v":""}]
[72,null,7,12,12.5,15.5,"",null,null,null,null,null,null,null,null,null,null,null,null,null,null,null,null,null,null,null,null,null,null,null,null,null,null,null,null,null,null,null,null,null,null,null,0,null,{"$f":"IFERROR(INDEX(TABLES!$I$2:$J$50,MATCH(AR78,TABLES!$I$2:$I$50,0),2),\"\")","v":""},{"$f":"IFERROR(INDEX(TABLES!$I$2:$K$50,MATCH($AR78,TABLES!$I$2:$I$50,0),3),\"\")","v":""}]
[73,null,7,12,12.5,15.5,{"$f":"IF(B79=\"\",\"\",D79-C79+F79-E79)","v":""},null,null,null,null,null,null,null,null,null,null,null,null,null,null,null,null,null,null,null,null,null,null,null,null,null,null,null,null,null,null,null,null,null,null,null,{"$f":"SUM(H79:AP79)","v":0},null,{"$f":"IFERROR(INDEX(TABLES!$I$2:$J$50,MATCH(AR79,TABLES!$I$2:$I$50,0),2),\"\")","v":""},{"$f":"IFERROR(INDEX(TABLES!$I$2:$K$50,MATCH($AR79,TABLES!$I$2:$I$50,0),3),\"\")","v":""}]
[74,null,7,12,12.5,15.5,"",null,null,null,null,null,null,null,null,null,null,null,null,null,null,null,null,null,null,null,null,null,null,null,null,null,null,null,null,null,null,null,null,null,null,null,0,null,{"$f":"IFERROR(INDEX(TABLES!$I$2:$J$50,MATCH(AR80,TABLES!$I$2:$I$50,0),2),\"\")","v":""},{"$f":"IFERROR(INDEX(TABLES!$I$2:$K$50,MATCH($AR80,TABLES!$I$2:$I$50,0),3),\"\")","v":""}]
[75,null,7,12,12.5,15.5,"",null,null,null,null,null,null,null,null,null,null,null,null,null,null,null,null,null,null,null,null,null,null,null,null,null,null,null,null,null,null,null,null,null,null,null,0,null,{"$f":"IFERROR(INDEX(TABLES!$I$2:$J$50,MATCH(AR81,TABLES!$I$2:$I$50,0),2),\"\")","v":""},{"$f":"IFERROR(INDEX(TABLES!$I$2:$K$50,MATCH($AR81,TABLES!$I$2:$I$50,0),3),\"\")","v":""}]
[76,null,7,12,12.5,15.5,"",null,null,null,null,null,null,null,null,null,null,null,null,null,null,null,null,null,null,null,null,null,null,null,null,null,null,null,null,null,null,null,null,null,null,null,0,null,{"$f":"IFERROR(INDEX(TABLES!$I$2:$J$50,MATCH(AR82,TABLES!$I$2:$I$50,0),2),\"\")","v":""},{"$f":"IFERROR(INDEX(TABLES!$I$2:$K$50,MATCH($AR82,TABLES!$I$2:$I$50,0),3),\"\")","v":""}]
[77,null,7,12,12.5,15.5,"",null,null,null,null,null,null,null,null,null,null,null,null,null,null,null,null,null,null,null,null,null,null,null,null,null,null,null,null,null,null,null,null,null,null,null,0,null,{"$f":"IFERROR(INDEX(TABLES!$I$2:$J$50,MATCH(AR83,TABLES!$I$2:$I$50,0),2),\"\")","v":""},{"$f":"IFERROR(INDEX(TABLES!$I$2:$K$50,MATCH($AR83,TABLES!$I$2:$I$50,0),3),\"\")","v":""}]
[78,null,7,12,12.5,15.5,"",null,null,null,null,null,null,null,null,null,null,null,null,null,null,null,null,null,null,null,null,null,null,null,null,null,null,null,null,null,null,null,null,null,null,null,0,null,{"$f":"IFERROR(INDEX(TABLES!$I$2:$J$50,MATCH(AR84,TABLES!$I$2:$I$50,0),2),\"\")","v":""},{"$f":"IFERROR(INDEX(TABLES!$I$2:$K$50,MATCH($AR84,TABLES!$I$2:$I$50,0),3),\"\")","v":""}]
[79,null,7,12,12.5,15.5,"",null,null,null,null,null,null,null,null,null,null,null,null,null,null,null,null,null,null,null,null,null,null,null,null,null,null,null,null,null,null,null,null,null,null,null,0,null,{"$f":"IFERROR(INDEX(TABLES!$I$2:$J$50,MATCH(AR85,TABLES!$I$2:$I$50,0),2),\"\")","v":""},{"$f":"IFERROR(INDEX(TABLES!$I$2:$K$50,MATCH($AR85,TABLES!$I$2:$I$50,0),3),\"\")","v":""}]
[80,null,7,12,12.5,15.5,"",null,null,null,null,null,null,null,null,null,null,null,null,null,null,null,null,null,null,null,null,null,null,null,null,null,null,null,null,null,null,null,null,null,null,null,0,null,{"$f":"IFERROR(INDEX(TABLES!$I$2:$J$50,MATCH(AR86,TABLES!$I$2:$I$50,0),2),\"\")","v":""},{"$f":"IFERROR(INDEX(TABLES!$I$2:$K$50,MATCH($AR86,TABLES!$I$2:$I$50,0),3),\"\")","v":""}]
[81,null,7,12,12.5,15.5,"",null,null,null,null,null,null,null,null,null,null,null,null,null,null,null,null,null,null,null,null,null,null,null,null,null,null,null,null,null,null,null,null,null,null,null,0,null,{"$f":"IFERROR(INDEX(TABLES!$I$2:$J$50,MATCH(AR87,TABLES!$I$2:$I$50,0),2),\"\")","v":""},{"$f":"IFERROR(INDEX(TABLES!$I$2:$K$50,MATCH($AR87,TABLES!$I$2:$I$50,0),3),\"\")","v":""}]
[82,null,7,12,12.5,15.5,"",null,null,null,null,null,null,null,null,null,null,null,null,null,null,null,null,null,null,null,null,null,null,null,null,null,null,null,null,null,null,null,null,null,null,null,0,null,{"$f":"IFERROR(INDEX(TABLES!$I$2:$J$50,MATCH(AR88,TABLES!$I$2:$I$50,0),2),\"\")","v":""},{"$f":"IFERROR(INDEX(TABLES!$I$2:$K$50,MATCH($AR88,TABLES!$I$2:$I$50,0),3),\"\")","v":""}]
[83,null,7,12,12.5,15.5,"",null,null,null,null,null,null,null,null,null,null,null,null,null,null,null,null,null,null,null,null,null,null,null,null,null,null,null,null,null,null,null,null,null,null,null,0,null,{"$f":"IFERROR(INDEX(TABLES!$I$2:$J$50,MATCH(AR89,TABLES!$I$2:$I$50,0),2),\"\")","v":""},{"$f":"IFERROR(INDEX(TABLES!$I$2:$K$50,MATCH($AR89,TABLES!$I$2:$I$50,0),3),\"\")","v":""}]
[84,null,7,12,12.5,15.5,"",null,null,null,null,null,null,null,null,null,null,null,null,null,null,null,null,null,null,null,null,null,null,null,null,null,null,null,null,null,null,null,null,null,null,null,0,null,{"$f":"IFERROR(INDEX(TABLES!$I$2:$J$50,MATCH(AR90,TABLES!$I$2:$I$50,0),2),\"\")","v":""},{"$f":"IFERROR(INDEX(TABLES!$I$2:$K$50,MATCH($AR90,TABLES!$I$2:$I$50,0),3),\"\")","v":""}]
[85,null,7,12,12.5,15.5,"",null,null,null,null,null,null,null,null,null,null,null,null,null,null,null,null,null,null,null,null,null,null,null,null,null,null,null,null,null,null,null,null,null,null,null,0,null,{"$f":"IFERROR(INDEX(TABLES!$I$2:$J$50,MATCH(AR91,TABLES!$I$2:$I$50,0),2),\"\")","v":""},{"$f":"IFERROR(INDEX(TABLES!$I$2:$K$50,MATCH($AR91,TABLES!$I$2:$I$50,0),3),\"\")","v":""}]
[86,null,7,12,12.5,15.5,"",null,null,null,null,null,null,null,null,null,null,null,null,null,null,null,null,null,null,null,null,null,null,null,null,null,null,null,null,null,null,null,null,null,null,null,0,null,{"$f":"IFERROR(INDEX(TABLES!$I$2:$J$50,MATCH(AR92,TABLES!$I$2:$I$50,0),2),\"\")","v":""},{"$f":"IFERROR(INDEX(TABLES!$I$2:$K$50,MATCH($AR92,TABLES!$I$2:$I$50,0),3),\"\")","v":""}]
[87,null,7,12,12.5,15.5,"",null,null,null,null,null,null,null,null,null,null,null,null,null,null,null,null,null,null,null,null,null,null,null,null,null,null,null,null,null,null,null,null,null,null,null,0,null,{"$f":"IFERROR(INDEX(TABLES!$I$2:$J$50,MATCH(AR93,TABLES!$I$2:$I$50,0),2),\"\")","v":""},{"$f":"IFERROR(INDEX(TABLES!$I$2:$K$50,MATCH($AR93,TABLES!$I$2:$I$50,0),3),\"\")","v":""}]
[88,null,7,12,12.5,15.5,"",null,null,null,null,null,null,null,null,null,null,null,null,null,null,null,null,null,null,null,null,null,null,null,null,null,null,null,null,null,null,null,null,null,null,null,0,null,{"$f":"IFERROR(INDEX(TABLES!$I$2:$J$50,MATCH(AR94,TABLES!$I$2:$I$50,0),2),\"\")","v":""},{"$f":"IFERROR(INDEX(TABLES!$I$2:$K$50,MATCH($AR94,TABLES!$I$2:$I$50,0),3),\"\")","v":""}]
[89,null,7,12,12.5,15.5,{"$f":"IF(B95=\"\",\"\",D95-C95+F95-E95)","v":""},null,null,null,null,null,null,null,null,null,null,null,null,null,null,null,null,null,null,null,null,null,null,null,null,null,null,null,null,null,null,null,null,null,null,null,0,null,{"$f":"IFERROR(INDEX(TABLES!$I$2:$J$50,MATCH(AR95,TABLES!$I$2:$I$50,0),2),\"\")","v":""},{"$f":"IFERROR(INDEX(TABLES!$I$2:$K$50,MATCH($AR95,TABLES!$I$2:$I$50,0),3),\"\")","v":""}]
[90,null,7,12,12.5,15.5,"",null,null,null,null,null,null,null,null,null,null,null,null,null,null,null,null,null,null,null,null,null,null,null,null,null,null,null,null,null,null,null,null,null,null,null,0,null,{"$f":"IFERROR(INDEX(TABLES!$I$2:$J$50,MATCH(AR96,TABLES!$I$2:$I$50,0),2),\"\")","v":""},{"$f":"IFERROR(INDEX(TABLES!$I$2:$K$50,MATCH($AR96,TABLES!$I$2:$I$50,0),3),\"\")","v":""}]
[91,null,7,12,12.5,15.5,"",null,null,null,null,null,null,null,null,null,null,null,null,null,null,null,null,null,null,null,null,null,null,null,null,null,null,null,null,null,null,null,null,null,null,null,0,null,{"$f":"IFERROR(INDEX(TABLES!$I$2:$J$50,MATCH(AR97,TABLES!$I$2:$I$50,0),2),\"\")","v":""},{"$f":"IFERROR(INDEX(TABLES!$I$2:$K$50,MATCH($AR97,TABLES!$I$2:$I$50,0),3),\"\")","v":""}]
[92,null,7,12,12.5,15.5,"",null,null,null,null,null,null,null,null,null,null,null,null,null,null,null,null,null,null,null,null,null,null,null,null,null,null,null,null,null,null,null,null,null,null,null,0,null,{"$f":"IFERROR(INDEX(TABLES!$I$2:$J$50,MATCH(AR98,TABLES!$I$2:$I$50,0),2),\"\")","v":""},{"$f":"IFERROR(INDEX(TABLES!$I$2:$K$50,MATCH($AR98,TABLES!$I$2:$I$50,0),3),\"\")","v":""}]
[93,null,7,12,12.5,15.5,"",null,null,null,null,null,null,null,null,null,null,null,null,null,null,null,null,null,null,null,null,null,null,null,null,null,null,null,null,null,null,null,null,null,null,null,0,null,{"$f":"IFERROR(INDEX(TABLES!$I$2:$J$50,MATCH(AR99,TABLES!$I$2:$I$50,0),2),\"\")","v":""},{"$f":"IFERROR(INDEX(TABLES!$I$2:$K$50,MATCH($AR99,TABLES!$I$2:$I$50,0),3),\"\")","v":""}]
[94,null,7,12,12.5,15.5,"",null,null,null,null,null,null,null,null,null,null,null,null,null,null,null,null,null,null,null,null,null,null,null,null,null,null,null,null,null,null,null,null,null,null,null,0,null,{"$f":"IFERROR(INDEX(TABLES!$I$2:$J$50,MATCH(AR100,TABLES!$I$2:$I$50,0),2),\"\")","v":""},{"$f":"IFERROR(INDEX(TABLES!$I$2:$K$50,MATCH($AR100,TABLES!$I$2:$I$50,0),3),\"\")","v":""}]
[95,null,7,12,12.5,15.5,"",null,null,null,null,null,null,null,null,null,null,null,null,null,null,null,null,null,null,null,null,null,null,null,null,null,null,null,null,null,null,null,null,null,null,null,0,null,{"$f":"IFERROR(INDEX(TABLES!$I$2:$J$50,MATCH(AR101,TABLES!$I$2:$I$50,0),2),\"\")","v":""},{"$f":"IFERROR(INDEX(TABLES!$I$2:$K$50,MATCH($AR101,TABLES!$I$2:$I$50,0),3),\"\")","v":""}]
[96,null,7,12,12.5,15.5,"",null,null,null,null,null,null,null,null,null,null,null,null,null,null,null,null,null,null,null,null,null,null,null,null,null,null,null,null,null,null,null,null,null,null,null,0,null,{"$f":"IFERROR(INDEX(TABLES!$I$2:$J$50,MATCH(AR102,TABLES!$I$2:$I$50,0),2),\"\")","v":""},{"$f":"IFERROR(INDEX(TABLES!$I$2:$K$50,MATCH($AR102,TABLES!$I$2:$I$50,0),3),\"\")","v":""}]
[97,null,7,12,12.5,15.5,"",null,null,null,null,null,null,null,null,null,null,null,null,null,null,null,null,null,null,null,null,null,null,null,null,null,null,null,null,null,null,null,null,null,null,null,0,null,{"$f":"IFERROR(INDEX(TABLES!$I$2:$J$50,MATCH(AR103,TABLES!$I$2:$I$50,0),2),\"\")","v":""},{"$f":"IFERROR(INDEX(TABLES!$I$2:$K$50,MATCH($AR103,TABLES!$I$2:$I$50,0),3),\"\")","v":""}]
[98,null,7,12,12.5,15.5,"",null,null,null,null,null,null,null,null,null,null,null,null,null,null,null,null,null,null,null,null,null,null,null,null,null,null,null,null,null,null,null,null,null,null,null,0,null,{"$f":"IFERROR(INDEX(TABLES!$I$2:$J$50,MATCH(AR104,TABLES!$I$2:$I$50,0),2),\"\")","v":""},{"$f":"IFERROR(INDEX(TABLES!$I$2:$K$50,MATCH($AR104,TABLES!$I$2:$I$50,0),3),\"\")","v":""}]
[99,null,7,12,12.5,15.5,"",null,null,null,null,null,null,null,null,null,null,null,null,null,null,null,null,null,null,null,null,null,null,null,null,null,null,null,null,null,null,null,null,null,null,null,0,null,{"$f":"IFERROR(INDEX(TABLES!$I$2:$J$50,MATCH(AR105,TABLES!$I$2:$I$50,0),2),\"\")","v":""},{"$f":"IFERROR(INDEX(TABLES!$I$2:$K$50,MATCH($AR105,TABLES!$I$2:$I$50,0),3),\"\")","v":""}]
[100,null,7,12,12.5,15.5,{"$f":"IF(B106=\"\",\"\",D106-C106+F106-E106)","v":""},null,null,null,null,null,null,null,null,null,null,null,null,null,null,null,null,null,null,null,null,null,null,null,null,null,null,null,null,null,null,null,null,null,null,null,0,null,{"$f":"IFERROR(INDEX(TABLES!$I$2:$J$50,MATCH(AR106,TABLES!$I$2:$I$50,0),2),\"\")","v":""},{"$f":"IFERROR(INDEX(TABLES!$I$2:$K$50,MATCH($AR106,TABLES!$I$2:$I$50,0),3),\"\")","v":""}]
[101,null,7,12,12.5,15.5,"",null,null,null,null,null,null,null,null,null,null,null,null,null,null,null,null,null,null,null,null,null,null,null,null,null,null,null,null,null,null,null,null,null,null,null,0,null,{"$f":"IFERROR(INDEX(TABLES!$I$2:$J$50,MATCH(AR107,TABLES!$I$2:$I$50,0),2),\"\")","v":""},{"$f":"IFERROR(INDEX(TABLES!$I$2:$K$50,MATCH($AR107,TABLES!$I$2:$I$50,0),3),\"\")","v":""}]
[102,null,7,12,12.5,15.5,"",null,null,null,null,null,null,null,null,null,null,null,null,null,null,null,null,null,null,null,null,null,null,null,null,null,null,null,null,null,null,null,null,null,null,null,0,null,{"$f":"IFERROR(INDEX(TABLES!$I$2:$J$50,MATCH(AR108,TABLES!$I$2:$I$50,0),2),\"\")","v":""},{"$f":"IFERROR(INDEX(TABLES!$I$2:$K$50,MATCH($AR108,TABLES!$I$2:$I$50,0),3),\"\")","v":""}]
[103,null,7,12,12.5,15.5,"",null,null,null,null,null,null,null,null,null,null,null,null,null,null,null,null,null,null,null,null,null,null,null,null,null,null,null,null,null,null,null,null,null,null,null,0,null,{"$f":"IFERROR(INDEX(TABLES!$I$2:$J$50,MATCH(AR109,TABLES!$I$2:$I$50,0),2),\"\")","v":""},{"$f":"IFERROR(INDEX(TABLES!$I$2:$K$50,MATCH($AR109,TABLES!$I$2:$I$50,0),3),\"\")","v":""}]
[104,null,7,12,12.5,15.5,"",null,null,null,null,null,null,null,null,null,null,null,null,null,null,null,null,null,null,null,null,null,null,null,null,null,null,null,null,null,null,null,null,null,null,null,0,null,{"$f":"IFERROR(INDEX(TABLES!$I$2:$J$50,MATCH(AR110,TABLES!$I$2:$I$50,0),2),\"\")","v":""},{"$f":"IFERROR(INDEX(TABLES!$I$2:$K$50,MATCH($AR110,TABLES!$I$2:$I$50,0),3),\"\")","v":""}]
[105,null,7,12,12.5,15.5,"",null,null,null,null,null,null,null,null,null,null,null,null,null,null,null,null,null,null,null,null,null,null,null,null,null,null,null,null,null,null,null,null,null,null,null,0,null,{"$f":"IFERROR(INDEX(TABLES!$I$2:$J$50,MATCH(AR111,TABLES!$I$2:$I$50,0),2),\"\")","v":""},{"$f":"IFERROR(INDEX(TABLES!$I$2:$K$50,MATCH($AR111,TABLES!$I$2:$I$50,0),3),\"\")","v":""}]
[106,null,7,12,12.5,15.5,"",null,null,null,null,null,null,null,null,null,null,null,null,null,null,null,null,null,null,null,null,null,null,null,null,null,null,null,null,null,null,null,null,null,null,null,0,null,{"$f":"IFERROR(INDEX(TABLES!$I$2:$J$50,MATCH(AR112,TABLES!$I$2:$I$50,0),2),\"\")","v":""},{"$f":"IFERROR(INDEX(TABLES!$I$2:$K$50,MATCH($AR112,TABLES!$I$2:$I$50,0),3),\"\")","v":""}]
[107,null,7,12,12.5,15.5,"",null,null,null,null,null,null,null,null,null,null,null,null,null,null,null,null,null,null,null,null,null,null,null,null,null,null,null,null,null,null,null,null,null,null,null,0,null,{"$f":"IFERROR(INDEX(TABLES!$I$2:$J$50,MATCH(AR113,TABLES!$I$2:$I$50,0),2),\"\")","v":""},{"$f":"IFERROR(INDEX(TABLES!$I$2:$K$50,MATCH($AR113,TABLES!$I$2:$I$50,0),3),\"\")","v":""}]
[108,null,7,12,12.5,15.5,"",null,null,null,null,null,null,null,null,null,null,null,null,null,null,null,null,null,null,null,null,null,null,null,null,null,null,null,null,null,null,null,null,null,null,null,0,null,{"$f":"IFERROR(INDEX(TABLES!$I$2:$J$50,MATCH(AR114,TABLES!$I$2:$I$50,0),2),\"\")","v":""},{"$f":"IFERROR(INDEX(TABLES!$I$2:$K$50,MATCH($AR114,TABLES!$I$2:$I$50,0),3),\"\")","v":""}]
[109,null,7,12,12.5,15.5,"",null,null,null,null,null,null,null,null,null,null,null,null,null,null,null,null,null,null,null,null,null,null,null,null,null,null,null,null,null,null,null,null,null,null,null,0,null,{"$f":"IFERROR(INDEX(TABLES!$I$2:$J$50,MATCH(AR115,TABLES!$I$2:$I$50,0),2),\"\")","v":""},{"$f":"IFERROR(INDEX(TABLES!$I$2:$K$50,MATCH($AR115,TABLES!$I$2:$I$50,0),3),\"\")","v":""}]
[110,null,7,12,12.5,15.5,"",null,null,null,null,null,null,null,null,null,null,null,null,null,null,null,null,null,null,null,null,null,null,null,null,null,null,null,null,null,null,null,null,null,null,null,0,null,{"$f":"IFERROR(INDEX(TABLES!$I$2:$J$50,MATCH(AR116,TABLES!$I$2:$I$50,0),2),\"\")","v":""},{"$f":"IFERROR(INDEX(TABLES!$I$2:$K$50,MATCH($AR116,TABLES!$I$2:$I$50,0),3),\"\")","v":""}]
[111,null,7,12,12.5,15.5,"",null,null,null,null,null,null,null,null,null,null,null,null,null,null,null,null,null,null,null,null,null,null,null,null,null,null,null,null,null,null,null,null,null,null,null,0,null,{"$f":"IFERROR(INDEX(TABLES!$I$2:$J$50,MATCH(AR117,TABLES!$I$2:$I$50,0),2),\"\")","v":""},{"$f":"IFERROR(INDEX(TABLES!$I$2:$K$50,MATCH($AR117,TABLES!$I$2:$I$50,0),3),\"\")","v":""}]
[112,null,7,12,12.5,15.5,"",null,null,null,null,null,null,null,null,null,null,null,null,null,null,null,null,null,null,null,null,null,null,null,null,null,null,null,null,null,null,null,null,null,null,null,0,null,{"$f":"IFERROR(INDEX(TABLES!$I$2:$J$50,MATCH(AR118,TABLES!$I$2:$I$50,0),2),\"\")","v":""},{"$f":"IFERROR(INDEX(TABLES!$I$2:$K$50,MATCH($AR118,TABLES!$I$2:$I$50,0),3),\"\")","v":""}]
[113,null,7,12,12.5,15.5,{"$f":"IF(B119=\"\",\"\",D119-C119+F119-E119)","v":""},null,null,null,null,null,null,null,null,null,null,null,null,null,null,null,null,null,null,null,null,null,null,null,null,null,null,null,null,null,null,null,null,null,null,null,0,null,{"$f":"IFERROR(INDEX(TABLES!$I$2:$J$50,MATCH(AR119,TABLES!$I$2:$I$50,0),2),\"\")","v":""},{"$f":"IFERROR(INDEX(TABLES!$I$2:$K$50,MATCH($AR119,TABLES!$I$2:$I$50,0),3),\"\")","v":""}]
[114,null,7,12,12.5,15.5,"",null,null,null,null,null,null,null,null,null,null,null,null,null,null,null,null,null,null,null,null,null,null,null,null,null,null,null,null,null,null,null,null,null,null,null,0,null,{"$f":"IFERROR(INDEX(TABLES!$I$2:$J$50,MATCH(AR120,TABLES!$I$2:$I$50,0),2),\"\")","v":""},{"$f":"IFERROR(INDEX(TABLES!$I$2:$K$50,MATCH($AR120,TABLES!$I$2:$I$50,0),3),\"\")","v":""}]
[115,null,7,12,12.5,15.5,"",null,null,null,null,null,null,null,null,null,null,null,null,null,null,null,null,null,null,null,null,null,null,null,null,null,null,null,null,null,null,null,null,null,null,null,0,null,{"$f":"IFERROR(INDEX(TABLES!$I$2:$J$50,MATCH(AR121,TABLES!$I$2:$I$50,0),2),\"\")","v":""},{"$f":"IFERROR(INDEX(TABLES!$I$2:$K$50,MATCH($AR121,TABLES!$I$2:$I$50,0),3),\"\")","v":""}]

{"sheet":"TABLES","index":1,"n_rows":121,"n_cols":15,"rows_kept":121,"cut":false,"hidden":false,"merged":[]}
["CODES","TACHES",null,null,"TYPES","TYPES D'INTERVENTION","EMPLOYÉS","SOUS TRAITANTS","CHANTIERS","N°","DATE CLOTURE"]
[null,null,null,null,null,null,null,null," "]
["000","Organisation De Chantier",null,null,"AP","Appareil D'Appui","CHRISTIAN CADRIN","Acier E.B.","2175 CHAPDELEINE  (18-5542)","18-5542","2018-12-31"]
["001","Mobilisation/Démobilisation",null,null,"BAL","Base De Lampadaire","DANIEL ASSELIN","Acier Écan","435 CSF  (18-5546)","18-5546","2018-06-30"]
["002","Mur De Protection",null,null,"BPO","Bout De Poutre","DANIEL D'AMOURS","Armatech","846 CSF  (18-5552)","18-5552","2018-05-31"]
["003","Protection Générale",null,null,"CA","Canniveau","DANIEL GAUDREAULT","Art-Dem","ADM  (18-ADM)","18-ADM","2018-12-31"]
["004","Échafaudage",null,null,"CE","Céramique","DOMINIC FRANCIS","Béton Provinciale","BONENFANT  (16-5248)","16-5248","2018-06-30"]
["005","Étaiement",null,null,"CH","Chape","ÉRIC PICARD","Blastrac Pierre-Luc Veilleux","CASERNES  (18-5554)","18-5554","2019-06-30"]
["006","Accès Et Entretien",null,null,"CO","Colonnes","GUILLAUME BLOUIN","Cimota","CENTRE DES CONGRES  (16-5406)","16-5406","2018-01-15"]
["007","Protection Temporaire",null,null,"CR","Chasses-Roues","GUY RACINE","Construction Carrier","CHU  (17-5506)","17-5506","2018-01-30"]
["008","Chute À Déchets",null,null,"CU","Culée","GUY SAMSON","Diamantex","D'YOUVILLE  (18-5556)","18-5566","2018-06-30"]
["009","Encapsulation",null,null,"DA","Dalle","HUGHES TURCOTTE","Excavations AGCC","ÉDIFICE H  (18-5551)","18-5551","2018-04-30"]
["010","Protection Pour Chauffage",null,null,"DD","Dessus Dalle","IAN CORRIVEAU","Excavations Desgagné","FORESTERIE  (18-5560)","18-5560","2018-12-31"]
["011","Main D'œuvre",null,null,"DIA","Diaphragme","JACQUES DURET","Gicleurs Québécois","GARNISON ST-JEAN  (16-5185)","16-5185","2018-06-30"]
["012","Formation",null,null,"DR","Drain","JASON BROOKS","Imperméabilisation Eric Lessard","HOPITAL LAVAL  (16-5307)","16-5307","2018-06-30"]
["013","Sondage, Marquage, Relevé",null,null,"ES","Escalier","JEAN-MARC DOUCET","Imperméabilisation RAE","HOTEL CLASSIQUE  (17-5501)","17-5501","2018-02-28"]
["014","Transport",null,null,"GLI","Glissiere De Béton","JEAN-SÉBASTIEN DEMERS","JM Lambert","LA CAPITALE  (18-5547)","18-5547","2018-05-31"]
["020","Signalisation",null,null,"HYD","Hydro","KEVEN FRIGON","La Truelle D'Or","LE BERNIÈRES  (18-5548)","18-5548","2018-02-28"]
["050","Démolition",null,null,"JC","Joint De Contrôle","LUC GODIN","Les Ferrailleurs Du Québec","LE NOBLET  (17-5440)","17-5440","2018-01-31"]
["051","Démolition - Marteau-Piqueur",null,null,"JD","Joint De Dilatation","MARLENE TREMBLAY","Mécanique Ducro","MARLY  (17-5490)","17-5490","2018-05-31"]
["052","Démolition - Tramac",null,null,"JETU","Jersey Tunnel","MARTIN ANCTIL","Monsieur Watt","MÉRICI 2017  (17-5463)","17-5463","2018-12-31",null,null," "]
["053","Démolition De Pelle",null,null,"MBL","Murs De Blocs","MARTIN DESGAGNÉ","Multi-Métal","MÉRICI 2018  (18-5540)","18-5540","2018-12-31",null," ",null," "]
["054","Démolition À Cisaille",null,null,"ME","Membrane","MARTIN FILLION","Nasco","MÉRICI BLOCS 1-4  (18-5555)","18-5555","2018-05-31"]
["055","Démolition Générale (Propre)",null,null,"MEC","Démolition De Mécanique","MARTIN LALIBERTÉ","Plomberie Pichette","PÉRISCOPE  (17-5430)","17-5430","2018-06-30",null," "]
["056","Hydrodémolition- Spinjet",null,null,"MGY","Démolition Murs De Gypse","MAXIME BLOUIN","Pompage Optimum","PLACE BELMONT  (18-5543)","18-5543","2018-12-31",null," "]
["057","Hydrodémolition- Robot",null,null,"MTE","Démolition Murs Terracota","MICHEL BÉLANGER","Profer","PLACE CHAMONIX  (18-5536)","18-5536","2018-12-31"]
["058","Hydrodémolition-Lance",null,null,"MU","Murs","PIERRE LEMIEUX","Revenco","PLACE DU PARC  (18-5537)","18-5537","2018-12-31"]
["059","Démolition De Mécanique",null,null,"PA","Passerelle","RAPHAEL ANCTIL","Sani-Orléans","RECHERCHE ET DÉVELOPPEMENT  (18-5567)","18-5567","2018-12-31"]
["060","Démolition-Scarification",null,null,"PE","Pleine Épaisseur","RICHARD DUCHESNE","Sciage Forage","SAMUEL DE CHAMPLAIN  (18-5538)","18-5538","2018-12-31"]
["061","Nettoyage",null,null,"PFGY","Plafond Gypse Enlevement","RICHARD PAQUET","Viking","TERRASSES DU VIEUX PORT  (18-5569)","18-5569","2018-06-30"]
["062","Enlèvement D'enduit",null,null,"PFTU","Plafond Tuile Enlevement","RICHARD PRIEUR",null,"VERTICA RESIDENT  (17-5485)","17-5485","2018-12-31"]
["063","Bassin De Filtration Et Sédimentation",null,null,"PI","Pile","SERGE GRANDMONT"]
["064","Enlèvement D'isolation Sur Mécanique",null,null,"PL","Dessous Dalle","STEVE LESSARD"]
["065","Lavage À Pression (Hydrodémolition)",null,null,"PLCE","Plancher Céramique Enlevement","STEVE MOLLOY"]
["066","Nettoyage De Rebuts De Démolition",null,null,"PLTU","Plancher Tuile Enlevement","SYLVAIN BELLEY"]
["067","Démentèlement Pour Récupération",null,null,"PO","Poutres","TOMMY MASSON"]
["100","Lavage / Nettoyage",null,null,"SS","Super Structure","YANICK MARTINEAU"]
["101","Nettoyage De Chantier",null,null,"TR","Transition","LOCATION MENUISIER"]
["102","Nettoyage Armature",null,null,"TRO","Trottoir"]
["103","Nettoyage À L'eau Et À L'air"]
["104","Lavage À Pression"]
["105","Hydrodémolition-Lavage"]
["106","Nettoyage Au Balai Mécanique"]
["107","Nettoyage De Coffrage"]
["150","Armature"]
["151","Forer/Poser Ancrages Pour Armature"]
["152","Forer/Poser Ancrages À Béton Projeté"]
["153","Poser Armature"]
["154","Poser Treillis Métalique"]
["155","Couper Armature Existante"]
["156","Poser Manchons"]
["200","Béton"]
["201","Coffrage/Décoffrage"]
["202","Liant À Béton - Inhibiteur De Corrosion"]
["203","Poser Scellant À Béton"]
["204","Béton Projeté - Mûrissement"]
["205","Injection"]
["206","Resurfaçage Au Mortier"]
["207","Resurfaçage À L'époxy - Membrane"]
["208","Traitement De Fissure"]
["209","Bétonnage"]
["210","Mûrissement"]
["211","Bétonnage En Sac",null,null,null,null,null," "]
["212","Plastrage"]
["213","Béton Remblai"]
["214","Béton Maigre"]
["250","Membrane"]
["251","Préparation Des Surfaces"]
["252","Blastrac"]
["253","Membrane Application (Pose)"]
["300","Divers"]
["301","Enlèvement De Pavage"]
["302","Pose De Pavage"]
["303","Déficiences"]
["304","Poser Joint D'expansion"]
["305","Déblai/Remblai"]
["306","Entretien Mécanique"]
["307","Soudure"]
["308","Jet De Sable",null,null,null," "]
["309","Métaux Ouvrés"]
["310","Déneigement"]
["311","Protection Et Chauffage"]
["312","Chauffage De Pavage"]
["313","Meulage"]
["314","Forer Ancrages Au Rock"]
["315","Poser Filet Métallique"]
["316","Poser Appareil D'appui"]
["317","Déplacer Barge"]
["319","Poser Miradrain"]
["320","Chauffage Béton"]
["321","Lever Tablier"]
["322","Échafaudage"]
["400","Travaux Supplémentaires"]
["500","Architecture / Finition"]
["501","Démolition De Cloison Sèche (Gypse)"]
["502","Démolition De Mur De Bloc"]
["503","Pose De Cloison En Stud Bois Ou Métal"]
["504","Pose D'isolant, Laine Minérale"]
["505","Pose De Revêtement De Finition"]
["506","Pose De Solins"]
["507","Portes, Cadres Et Quincaillerie"]
["508","Peinture"]
["509","Joints De Scellant",null,null,null,null,null,null," "]
["510","Tirage De Joints"]
["511","Lamelles De Carbone"]
["600","Amiante"]
["607","Protection Temporaire (Amiante)"]
["608","Chute À Déchets (Amiante)"]
["609","Encapsulation (Amiante)"]
["650","Démolition (Amiante)"]
["651","Démolition Marteau Piqueur (Amiante)",null,null,null,null,null," "]
["652","Démolition Au Tramac (Amiante)"]
["653","Démolition De Pelle (Amiante)"]
["654","Démolition À Cisaille (Amiante)"]
["655","Démolition Générale (Propre) (Amiante)"]
["659","Démolition De Mécanique (Amiante)"]
["660","Démolition-Scarification (Amiante)"]
["661","Nettoyage (Amiante)",null,null,null," "]
["662","Enlèvement D'enduit (Amiante)"]
["663","Bassin De Filtration Et Sédimentation (Amiante)"]
["664","Enlèvement D'isolation Sur Mécanique (Amiante)"]

{"sheet":"Mode d'emploi","index":2,"n_rows":12,"n_cols":2,"rows_kept":12,"cut":false,"hidden":true,"merged":[]}
["Mode d'emploi"]
[0,"Objectif de l'application :\n- Permettre la saisie journalière des heures prestées par personne/chantier/code/sous code.\n- Permettre le stockage de ces informations journalières dans une base de données afin de pouvoir en retirer diverses statistiques.\n- Permettre la saisie de la date de clôture des chantiers\n- Permettre la gestion des fichiers et la suppression des lignes concernant les chantiers terminés"]
[null,"Philosophie de l'application :\nLe projet est composé de 2 classeurs Excel.\nLe premier classeur est nommé \"DONNEES JOUR\".  Il est un outil d'encodage  journalier des heures prestées sur divers chantiers ainsi que leur ventilation par code de tâches et sous tâches (onglet D_JOUR).  \nPour soutenir l'encodage, diverses informations sont stockées dans des tables et permettent leur introduction dans le tableau d'encodage via des listes déroulantes (onglet TABLES). \nLe deuxième classeur nommé \"SUIVI CHANTIERS aaaa\" va recueillir dans un onglet (DONNEES)  toutes les données journalières et leur ventilation.\nSur base de ces données, différents onglets contiendront des Tableaux croisés dynamiques permettant toutes les analyses statistiques nécessaires"]
[null,"De préférence, le gestionnaire aura à installer ces 2 classeurs dans un répertoire isolé car l'application va générer au fur et à mesure des encodages et des MAJ des fichiers de sauvegarde (un par jour).  Le programme détectera automatiquement l'endoit où sont installés les classeurs.\nIl serait prudent de créer un sous répertoire \"Back up\" contenant ces deux classeurs vierges afin de pouvoir les récupérer si incidents grâves. \nLes noms de ces 2 fichiers seront  \"DONNEES JOUR_source.xlsm\" et \"SUIVI CHANTIERS aaaa\".  Ces fichiers ne doivent jamais être utilisés avec ces noms : ils doivent être installés dans le répertoire de travail en adaptant  leur nom à savoir enlever _source dans l'un et mettre l'année à la place de aaaa dans l'autre.\nAdapter la cellule A1 avec le nom de l'entreprise (ou autre chose...)\nL'onglet Modifications contient quelques réflexions supplémentaires et questions.  Après réflexion il pourra être supprimé"]
["1\n1.1","Gestion du classeur \"DONNEES_JOUR\"\nOnglet \"TABLES\"\nCet onglet doit être impérativement mis à jour avant de commencer un nouvel encodage journalier.  En effet, il faut que le tableau d'encodage puisse disposer des informations nécessaires dans ses différentes listes déroulantes.\nEn plus des informations de base, la table des chantiers contient également l'information qui détermine la date de clôture d'un chantier.  Cette date peut être soit annulée soit modifiée en fonction des évènements.  Elle permet d'effectuer des sélections lors des diverses statistiques et, surtout, de permettre ultérieurement (une fois par an par exemple) d'éliminer les informations concernant les chantiers terminés (VBA encore à réaliser).  \nLa date de clôture doit IMPERATIVEMENT être encodée dans ce classeur (ET PAS DANS LE CLASSEUR SUIVI CHANTIERSaaaa où le VBA va la transmettre dans l'onglet TABLE)\n  \nColonnes A et B contiennent les codes tâches et leurs descriptions. Un potentiel de 115 codes est prévu dont une ligne blanche en début pour gestion de la liste déroulante.\n\nColonnes C et D contiennent des titres de rubriques de tâches (inutilisée pour l'instant)\n\nColonnes E et F contiennent les types d'interventions et leurs descriptions.  Un potentiel de 52 Types est prévu dont une ligne blanche en début pour gestion de la liste déroulante.\n\n"]
[null,"Colonne G contient les noms du personnel.  Un potentiel de 100 noms est prévu dont une ligne blanche en début pour gestion de la liste déroulante.\n\nColonne H contient la liste des sous traitants (inutilisée pour l'instant)\n\nColonnes I  J et K  contiennent les informations des chantiers. (Noms, Numéros et Dates de clôture). \n\n"]
[1.2,"Onglet D_JOUR\nCet onglet est l'outil d'encodage des données journalières. Comme les informations de codes et sous codes sont nombreuses et variables, il a été décidé que les combinaisons de codes/sous codes informations de ventilation ne pouvaient pas dépasser 30 possiblités par jour.  Il appartient donc à l'encodeur de compléter les titres des colonnes H à AK.  Pour ce faire, il dispose des listes déroulantes lui permettant de choisir les combinaisons utilisées lors de la journée de travail à encoder. \nL'encodeur aura ensuite à vérifier la date du jour des prestations.  Le programme de transfert présentera chaque jour, après la mise à jour, un tableau vierge dont la date aura été adaptée en ajoutant 1 ou 2 ou 3 (en fonction du jour de la semaine) pour être prêt à l'encodage du jour travaillé suivant. Toutefois, des circonstances particulières pourraient présenter une situation différente de la routine habituelle (congés, grèves, rattrapages d'encodage, travail du WE...).  Il faudra alors adapter la date manuellement.  Le bouton donnant la date du jour a été maintenu malgré son peu d'utilité.\nIl aura ensuite, ligne à ligne à :\n- adapter l'horaire en fonction de la réalité (l'application lui présentant l'horaire normale - colonnes C à F). En fonction de l'horaire, un nombre d'heures total travaillées sera calculé en colonne G.\n- encoder la ventilation des heures prestées par Codes/Sous Codes dans les colonnes H à AK.  Un total des heures ventilées sera calculé en colonne AL.  Cette colonne se mettra en surbrillance rouge si ce total ne correspond pas au total des heures travaillées (colonne G).  Il appartiendra à l'encodeur de corriger l'erreur."]
[2,"Lancement du programme VBA.\nEn cliquant sur le bouon MAJ, l'opérateur lancera le programme de MAJ càd :\n- contrôle de l'égalité entre le total des heures travailées et total des heures ventilées. Si discordance, il y aura un message d'erreur et le progamme s'arrêtera SANS AVOIR FAIT LA MAJ. L'opérateur aura alors à corriger la discordance et relancer la MAJ.\n- le transfert ligne à ligne des informations contenues dans l'onglet D_JOUR vers le classeur SUIVI CHANTIER aaaa.XLSM.\n- Transfert des informations de la table des chantiers afin de connaître les chantiers terminés dans le classeur  \"SUIVI CHANTIERS aaaa\" (onglet \"TABLE\")\n- enregistrement et fermeture du classeur \"SUIVI CHANTIERS aaaa\"\n- le sauvetage du classeur 'DONNEES JOUR\" sous le nom : \n'DONNEES JOUR aaammjj\"\n- remise à \"blanc\" de l'onglet \"D_JOUR\" et mise à jour de la date qui augmentera de 1 ou de 2 ou de 3 en fonction du jour de la semaine de façon à présenter un tableau vierge prêt à encoder la journée suivante de travail.\n"]
[3,"L'analyse des statistiques désirées n'étant pas encore effectuée, quelques tableaux croisés dynamiques ont été développés à titre  d'exemples.  \nAprès analyse, il conviendra soit de les adapter en fonction des besoins soit de développer des tableaux statistiques \"sur mesure\"\nA noter que tous les tableaux sont dotés de filtres afin de présenter les statistiques désirées (en individualisant un chantier par exemple ou une plage de date)\nAttention : les tableaux croisés dynamiques doivent impérativement être \"Actualiser\" à chaque mise à jour pour qu'ils puissent prendre connaissance des nouvelles informations.  Pour faire cela, placer le curseur dans n'importe quelle cellule du tableau, ensuite cliquer droit et choisir \"Actualiser\" dans le menu."]
[4,"Il faudra encore développer un VBA permettant d'expurger les chantiers terminés et de repartir avec un classeur différents pour l'année suivante.  C'est pourquoi le classeur  \"SUIVI CHANTIERS aaaa\" a été créé avec l'extension \".XLSM\" alors que, pour l'instant, il ne contient pas encore de VBA."]
[]
[null," "]

{"sheet":"Modifications","index":3,"n_rows":35,"n_cols":6,"rows_kept":35,"cut":false,"hidden":true,"merged":[[0,0,0,1],[25,2,28,2]]}
["MODIFICATIONS"]
[1,"changer onglet DATA en TABLES (les datas sont les données)"]
[2,"Onglet Tables : transformé colonne A en colonne texte pour pouvoir mettre la codification  avec 0 devant","ok"]
[3,"Onglet Tables :manque le code 318 --> normal ??","Oui c'est normal. Ce code a déjà existé et il a été abandonné"]
[4,"Onglet Tables :que veux dire le code 6-- ?  Comment cela fonctionne t il ??","J'ai arrangé les codes avec un 6___,  je viens de les ciblés en VERT,   ils sont tres peu souvent utilisés, mais sont nécessaires   C'EST CODES peuvent avoir aussi des sous codes","Bon dieu pourquoi faut il utiliser 4 caractères cette fois ???  Restons à 3 STP. Sinon je vais en mettre 4 pour tous les autres !!!","J'ai modifié les codes pour qu'ils aient 3 chiffres"]
[5,"les heures sont en centièmes d'heures je suppose ??","Les heures sont comme  par tranches de 15 minutes donc   ,0   ,25    ,5    ,75","Donc il faut 2 décimales à la place de 1 --> je change","ok"]
[6,"Onglet d'encodage journalier : insertion d'une colonne H pour calcul des heures prestées suivant les heures déclarées.","ok   mais est-ce la meme fonction que la colonne AB","Bien évidemment que non : regarde dans les cellules STP ! La colonne H fait le calcul des heures prestées sur base de l'horaire et la colonne AB fait la somme des heures ventilées.  Exactement ce que tu demandais dans ton autre poste.","Ok  alors on garde la colonne H"]
[7,"Onglet d'encodage journalier : MEFC pour la colonne Z si discordance avec colonne H (rouge)","parfait"]
[8,"Onglet d'encodage journalier : Il y a 17 codes possibles sur une feuille d'encodage journalier : c'est le maximum par jour ?? Par sécurité, j'en ai ajouté 3 pour faire un total de 20","ca peut arriver qu'on depasse 20 codes par jour , pourrait tu aller jusqu’à 30 sinon 25    merci","Je peux aller jusqu'à la capacité d'Excel mais ce n'est pas confortable de dépasser la largeur de l'écran.  Je porte à 30","ok a 30 c'est parfait"]
[9,"Onglet d'encodage journalier : Quand il y a un sous code : c'est toujours valable pour toute la colonne ??  Il n'arrive pas que deux personnes travaillent pour le même code mais pour des sous codes différents (ou pas de sous code) ??","quand il y a un sous codes, c'est toujours valable pour toute la colonne et oui , il peut arriver que plusieurs personnes travaillent pour le meme code mais des SC différents    LES CODES pouvant avoir des sous codes sont  jaunes sur la feuille TABLE donc il y en a beaucoup"]
[10,"Onglet Tables :La table des noms a été transformée en \"TABLEAU EXCEL\" et ce tableau s'appelle EMPLOYES.  Les cellules contenant les noms ont été nommées EMPLOYE (sert dans la liste déroulante)","ok","Comprends tu ce que veux dire mettre sous la forme d'un \"TABLEAU EXCEL\" ? Cela offre une toute autre manière de travailler avec Excel","Oui je comprends, On peut voir tout ca dans le gestionnaire de noms"]
[11,"Onglet Tables : La table des chantiers a été transformée en \"TABLEAU EXCEL\" et ce tableau s'appelle CHANTIERS (contient 2 colonnes).  Les cellules contenant les noms de chantiers ont été nommées CHANTIER (sert dans la liste déroulante)","ok    Il sera important de toujours voir le numéro de chantier attaché a chaque chantier car souvent un nom de chantier peut se repeté, mais avec un autre numéro","Ceci implique que :\n- dans le tableau d'encodage journalier il faut inverser la donne à savoir faire le choix du numéro de chantier et rechercher le nom dans la table et pas comme maintenant où tu encodais le nom et tu recherchais le numéro !!!!  Très important es tu certain de vouloir travailler ainsi ??  Pour moi, c'est en effet plus logique mais c'est plus inconfortable pour l'encodeur (toi) qui devra choisir un numéro à la palce de choisir un nom.  Ne vaudrait il pas mieux différencier légèrement les noms identiques (HOTEL CLASSIQUE 01 - HOTEL CLASSIQUE 02...- \n- dans les choix pour les tableaux ultérieurs, il faut impérativement se baser sur les numéros et non sur les noms.","C'est difficile de retenir tout les numéros attchachés pour chaque chantier   C'est la raison pour laquelle qu'il est facile que le numéro aparaisse. Si c'est possible je préfere laisser comme suit ** Nom du chantier et Numéro de Job** HOTEL CLASSIQUE  17-5501. Pour différer les noms identiques, les renommer ___2  et ___3  etc c'est essentiel."]
[12,"Onglet Tables : La table des codes tâches a été transformée en \"TABLEAU EXCEL\" et ce tableau s'appelle TACHES (contient 2 colonnes).  Les cellules contenant les codes ont été nommées CODE (sert dans la liste déroulante)"]
[13,"Onglet Tables : La table des codes interventions a été transformée en \"TABLEAU EXCEL\" et ce tableau s'appelle INTERVENTIONS (contient 2 colonnes).  Les cellules contenant les types ont été nommées TYPE (sert dans la liste déroulante)","la colonne D   (type D'intervention) est seulement a titre d'informations pour les sous codes en C, ils ne doivent pas apparaitre ailleurs"]
[14,"Le tableau d'encodage journalier a été doté des différentes listes déroulantes","ok"]
[15,"Onglet Tables : La table des sous-traitants (qui ne sert pas dans cette application) a été aussi transformée en \"TABLEAU EXCEL\" et ce tableau s'appelle SOUS_TRAITANTS.  Les cellules contenant les noms ont été nommées ST (pourrait servir dans une liste déroulante).  Ceci a été fait dans un souci d'homogénéité avec les autres tables","J'AI du faire erreur.  Ce tableau SOUS - TRAITANTS n'est pas requis pour cette synthese alors tu peux le laisser mais il ne servira pas"]
[16,"Onglet d'encodage journalier : Les boutons macros ont été déplacés hors champ du tableau","tres bonne idée","A toutes fins utiles sais tu que la combinaison des touches \"CTRL / ; \"donne la date d'aujourd'hui ?\nCeci dit ta macro pourrait être utile car je pense la compléter pour réinitialiser le tableau pour redémarrer l'encodage d'une nouvelle journée.\nA ce titre de nouvelles questions :\n- faut il conserver cet encodage journalier ?\n- les 2 titres des colonnes (codes et sous codes) changent-ils chaque jour ?  Ma question est de savoir ce qui est le plus pratique pour toi : quand on commence l'encodage d'une nouvelle journée, est plus facile de partir avec 30 * 2 colonnes de titres vierges ou bien laissé les codes et sous codes de la de la journée précédente et adapté ce qui doit l'être ?? S'il y a peu de changement, cette dernière solution est préférable MAIS ATTENTION ELLE EST SOURCE D'ERREURS.  En effet, dans la précipitations on peut plus facilement oublier un changement que de partir de 0 et de refaire tous les titres.  Dis moi ce que tu en penses","Pour CTRL /, je l'utilise a l'occasion sur d'autres classeurs.OUI IL faut conserver l'encodage journalier, car si il y a 50 employés a chaque jour, Encodé sur une semaine, fera beaucoup trop de lignes et surtout 30 colonnes pour les codes ne seront pas suffisant.J'aime mieux qu'a chaque journée, on recommence avec une feuille sans codes.","Tu m'a mal compris, j'ai bien l'intention que le tableau d'encodage soit journalier.  Ma question était de savoir si, quand la mise à jour dans la base de données cumulative aura été faite (journellement aussi après encodage), faut il conserver tous ces fichiers d'encodage journalier ou peuvent ils être détruits ??\nAutre option : on les garde pendant un certain temps (1 mois par exemple)\nEn ce qui concerne l'usage de ta (grande) macro pour la date : dans la logique des choses, tu reçois tes informations pour l'encodage le lendemain du jour travaillé.  Ne faudrait il par aménager la macro pour proposer la date du jour d'avant ou de 2 jours d'avant pour les WE ??"]
[17,"Onglet d'encodage journalier : La fusion des colonnes B et C a été supprimée et la colonne C enlevée (ne servait à rien)","ok"]
[18,"Onglet d'encodage journalier : La colonne AD a été adaptée pour accueillir le numéro du chantier en fonction du nom de chantier déclaré en colonne AC","merci tu l'as arrangé comme je t'avais demandé","Oui mais cela ne va plus après lecture de ta réponse au point 11.  Réponds moi vite sur ce point important car cela change fortement la programmation","Ca sera réglé de facon a différer les Noms de chantier s'ils apparaissent 2 fois __2  ___3 etc"]
[19,"Je me suis aperçu que j'avais oublié de traiter la \"clôture\" des chantiers : je me propose d'ajouter une colonne dans l'onglet TABLES (colonne I) pour y mettre la date de clôture du chantier.  Donc si une cellule de cette colonne est vide : le chantier est en cours, si elle contient une date : le chantier est clôturé.  L'encodage des dates a été limité du 1/1/2016 au 31/12/2050.  ceci pour éviter de mettre, par erreur, des dates absurdes.  Est ce que la founchette est bonne ??\nCela permet de :\n- dans les tableaux de synthèse de faire apparaître la date de début et de fin de chantier (ce qu me parît important dans votre gestion)\n- dans le futur VBA de suppression des chantiers terminés de mettre une date limite pour éliminer les chantirs terminés (chantiers clôturés juqu'au jj/mm/aaa)",null,null,"C'est difficile de valider la date de fin d'un chantier, alors de faire apparaitre la date de début et de fin n'est pas requis.A cahque début d'année, ce sera facile d'éliminer dans la liste, les chantiers terminés. ","Si c'est facile à la fin d'année, je ne vois pas pourquoi ce ne l'est pas pendant l'année.\nMême si c'est approximatif et même si il faut rouvrir le chantier si gros pépin, (il suffit d'enlever la date et de la remettre plus tard).  Il me semble essentiel de garder une statistique de la durée des chantiers même approximative.\nCela devrait aider à la confection des devis futurs.\nPour la suppression des données, je propose de mettre une date limite de supprssion ainsi tu pourrais garder dans le fichier les chantiers encore sous garantie par exemple.\nCela permetttra également de filtrer les statistiques en ne montrant pas les chantiers clôturés.  Bref, je pense que tu devrais maintenir cette possiblité et si tes gars sont réfractaires au début, je pense que ton patron appréciera.  Et au final que tu mettes un C pour clôturé ou une date : quelle différence cela fait il ???  Donc j'insiste pour maintenir une date de clôture"]
[20,"Peux tu me faire la liste des tableaux de synthèse que tu désires ??"]
[21,"Si tu me donnes tes coordonnées mail dans ta réponse, je prendrai contact directement avec toi mais je te demande de ne pas communiquer  mes coordonnées",null,null,"voici mon courriel        mdesgagne4@gmail.com      et oui tu peux me faire confiance pour ton courriel, ca restera confidentiel"]
[]
[]
[null,null,null,"Voici ce que j'aimerais avoir dans le tableau                                                                                                                 "]
[null,null,"je t'avoue que J'ai aucune idée a quoi peut ressembler ce tableau"," Compilation HEBDOMADAIRE "]
[null,null,null,"Séparer les chantiers"]
[null,null,null,"avoir le nombre d'heures total jusqu’à maintenant pour chaque codes (inclant sous codes) pour chaque chantier"]
[null,null,null,"Avoir le total d'heures totales travaillées pour chaque chantier"]
[null,null,null,"Si c'est possible d'avoir le nombre d'heures total de chaque employé avec leur nom par chantier"]
[]
[]
[]
[22,"TRI des noms : lancer le tri ascendant puis relancer le tri couleur en choisissant le quadrillage serré pour ramener celui-ci en première position"]
[23,"Onglet Tables : une table des codes Titres des tâches a été créée en \"TABLEAU EXCEL\" et ce tableau s'appelle TITRES_TACHES (contient 2 colonnes).  "]